Cogmind - Beta 12 @@@ ROGUE MODE // 2023.03.29 @ 17:18:45 Player: MrProgressor Result: Destroyed by as-69170 with Assembled Rifle Performance ------------- Evolutions (0) 0 Regions Visited (2) 400 Robots Destroyed (9) 45 Value Destroyed (247) 247 Prototype IDs (2) 40 Alien Tech Used (0) 0 Bonus (0) 0 TOTAL SCORE: 732 Bonus ------- None Cogmind --------- Core Integrity 0/250 Matter 176/300 Energy 80/100 System Corruption 0% Temperature Cool (0) Movement Treading (320) Ox2 Location -10/Mines Parts ------- > --- POWER (1) -------- (None) > --- PROPULSION (2) --- Light Treads Light Treads > --- UTILITY (2) ------ Huge Storage Unit > --- WEAPON (2) ------- Assault Rifle > --- INVENTORY (25) --- Ion Engine Aluminum Leg Aluminum Leg High-capacity Storage Unit Medium Matter Pod (0) Medium Matter Pod (0) Structural Scanner Propulsion Shielding Propulsion Shielding EM Pulse Gun Medium Laser Assault Rifle Assault Rifle Assault Rifle Mining Laser Mining Laser Peak State ------------ > --- POWER ------------ Ion Engine > --- PROPULSION ------- Compact Wheel Compact Wheel > --- UTILITY ---------- Heat Sink Huge Storage Unit > --- WEAPON ----------- Assault Rifle Light Cannon > --- INVENTORY -------- Ion Engine Light Treads Light Treads Light Treads Aluminum Leg Aluminum Leg High-capacity Storage Unit Medium Matter Pod Structural Scanner Propulsion Shielding Propulsion Shielding EM Pulse Gun Medium Laser Assault Rifle Assault Rifle Assault Rifle Assault Rifle Assault Rifle Mining Laser Mining Laser [Rating: 9] Favorites ----------- Power Ion Engine Engine Ion Engine Propulsion Aluminum Leg Treads Light Treads Leg Aluminum Leg Wheel Compact Wheel Utility Small Storage Unit Device Heat Sink Storage Small Storage Unit Weapon Assault Rifle Ballistic Gun Assault Rifle Ballistic Cannon Light Cannon Build | -11 -10 -10 ------- Run | Jun Mat Min Slots Evolved . | . . . Power . | . . . Propulsion . | . . . Utility . | . . . Weapon . | . . . Parts Attached 16 | 1 10 5 Power 1 | . 1 . Engine 1 | . 1 . Core . | . . . Reactor . | . . . Propulsion 9 | . 6 3 Treads 3 | . . 3 Leg 4 | . 4 . Wheel 2 | . 2 . Hover . | . . . Flight . | . . . Utility 2 | . 2 . Device 1 | . 1 . Storage 1 | . 1 . Processor . | . . . Hackware . | . . . Protection . | . . . Artifact . | . . . Weapon 4 | 1 1 2 Energy Gun . | . . . Energy Cannon . | . . . Ballistic Gun 3 | 1 . 2 Ballistic Cannon 1 | . 1 . Launcher . | . . . Special Weapon . | . . . Impact Weapon . | . . . Slashing Weapon . | . . . Piercing Weapon . | . . . Special Melee Weapon . | . . . Unidentified Prototypes . | . . . Parts Lost 8 | . . 8 Power 1 | . . 1 Propulsion 3 | . . 3 Utility 1 | . . 1 Weapon 3 | . . 3 Highest Loss Streak 8 | . . 8 To Critical Strikes . | . . . Average Slot Usage (%) 92 | . 93 82 Engine 13 | . 14 5 Leg 18 | . 20 . Wheel 8 | . 7 16 Device 8 | . 8 11 Storage 14 | . 14 14 Ballistic Gun 23 | . 24 14 Ballistic Cannon 3 | . 3 8 Naked Turns . | . . . Heaviest Build 91 | 13 91 91 Greatest Support 32 | 20 32 32 Greatest Overweight (x) 2 | . 2 2 Average Overweight (x) . | . . 2 Largest Inventory Capacity 25 | 8 25 25 Average Capacity 13 | 8 12 25 Most Carried 21 | 6 21 21 Average Carried 10 | 6 10 19 Final Capacity 25 | 8 25 25 Final Carried 21 | 6 21 16 Class Distribution -------------------- 88% | Mutant 11% | Scavenger-Mutant Dominant Class ---------------- Mutant | -10/Materials Mutant | -10/Mines Resources | -11 -10 -10 ----------- Run | Jun Mat Min Matter Collected 374 | 178 196 . Remotely . | . . . Salvage Created 321 | . 291 30 Parts 17 | . 17 . Haulers Intercepted . | . . . Recyclers Shooed . | . . . Parts Field Recycled . | . . . Retrieved Matter . | . . . Parts Self-Destructed . | . . . Prevented . | . . . Kills | -11 -10 -10 ------- Run | Jun Mat Min Combat Hostiles Destroyed 12 | . 9 3 Guns 11 | . 9 2 Cannons 1 | . . 1 Classes Destroyed 3 | . 2 1 Swarmer 3 | . 3 . Grunt 6 | . 6 . Assembled 3 | . . 3 Best Kill Streak 3 | . 3 3 Combat Bots Only 3 | . 3 3 Max Kills in Single Turn 2 | . 1 2 Gunslinging . | . . . Exploded . | . . . Melee . | . . . Uniques/NPCs Destroyed . | . . . Combat | -11 -10 -10 -------- Run | Jun Mat Min Damage Taken 1482 | . 451 1031 Core 258 | . 75 183 Absorbed by Shields . | . . . Core Remaining (%) 100 | 100 . . Volleys Fired 42 | . 33 9 Largest 2 | . 2 2 Hottest 55 | . 40 55 Shots Fired 80 | . 66 14 Gun 76 | . 66 10 Cannon 4 | . . 4 Launcher . | . . . Special . | . . . Kinetic 80 | . 66 14 Thermal . | . . . Explosive . | . . . Electromagnetic . | . . . Robot Hit Streak 9 | . 6 9 Robot Miss Streak 5 | . 5 1 Penetration Max . | . . . Secondary Targets 5 | . 5 . Max Gunslinging Chain 1 | . 1 . Shots Hit Robots 53 | . 42 11 Core Hits 23 | . 17 6 Critical Kills . | . . . Critical Parts Destroyed 1 | . 1 . Critical Strikes 1 | . 1 . Destroy 1 | . 1 . Melee Attacks . | . . . Impact . | . . . Slashing . | . . . Piercing . | . . . Sneak Attacks . | . . . Combat Hostiles . | . . . Follow-up Attacks . | . . . Damage Inflicted 646 | . 469 177 Guns 579 | . 469 110 Cannons 67 | . . 67 Explosions . | . . . Melee . | . . . Ramming . | . . . Kinetic 646 | . 469 177 Thermal . | . . . Explosive . | . . . Electromagnetic . | . . . Impact . | . . . Slashing . | . . . Piercing . | . . . Highest Corruption . | . . . Average Corruption . | . . . Corruption Purged . | . . . Corruption Blocked . | . . . Overload Shots . | . . . Overflow Damage . | . . . Projectiles . | . . . Explosions . | . . . Melee . | . . . Knockbacks . | . . . Impact . | . . . Kinetic . | . . . Secondary . | . . . Self-Inflicted Damage . | . . . Shots . | . . . Rammed . | . . . Targets Rammed . | . . . Kicked . | . . . Crushed . | . . . Highest Temperature 25 | . 25 . Average Temperature 8 | . 8 . Received Heat Transfer 237 | . 237 . Siege Activations . | . . . Robots Corrupted . | . . . Combat Hostiles . | . . . Parts Fried . | . . . Impact Corruptions . | . . . Robots Melted . | . . . Combat Hostiles . | . . . Parts Melted . | . . . Heat Transferred . | . . . Parts Sabotaged . | . . . Parts Stolen . | . . . Parts Stripped . | . . . Power Chain Reactions . | . . . Missiles Intercepted . | . . . Alert | -11 -10 -10 ------- Run | Jun Mat Min Peak Influence 280 | . 280 42 Initial 42 | . . 42 Average 126 | . 144 23 Maximum Alert Level 1 | . 1 . Low Security (%) 68 | 100 63 100 Level 1 31 | . 36 . Level 2 . | . . . Level 3 . | . . . Level 4 . | . . . Level 5 . | . . . High Security . | . . . Max Security . | . . . Squads Dispatched 2 | . 2 . Investigation 1 | . 1 . Extermination . | . . . Reinforcement 1 | . 1 . Assault . | . . . Garrison . | . . . Intercept . | . . . Searches Triggered . | . . . Construction Impeded . | . . . Haulers Reinforced . | . . . Active Scanning Responses . | . . . Cargo Convoy Interrupts . | . . . Stealth | -11 -10 -10 --------- Run | Jun Mat Min Distress Signals . | . . . Communications Jammed . | . . . Distress Signals . | . . . Times Spotted 23 | . 13 10 Peak Tracking Total 8 | . 4 8 Tactical Retreats . | . . . Traps | -11 -10 -10 ------- Run | Jun Mat Min Traps Triggered . | . . . Indirectly . | . . . Trap Hack Attempts . | . . . Triggered . | . . . Disarmed . | . . . Reprogrammed . | . . . Reused . | . . . Traps Extracted . | . . . Installed . | . . . Triggered . | . . . Machines | -11 -10 -10 ---------- Run | Jun Mat Min Machines Disabled . | . . . Max in Single Turn . | . . . Machines Repaired . | . . . Machines Sabotaged . | . . . Overloaded Fab Kills . | . . . Hacking | -11 -10 -10 --------- Run | Jun Mat Min Machines Accessed 4 | . 4 . Terminals 3 | . 3 . Fabricators . | . . . Repair Stations . | . . . Recycling Units 1 | . 1 . Scanalyzers . | . . . Garrison Access . | . . . Total Hacks 9 | . 9 . Successful 3 | . 3 . Failed 6 | . 6 . Catastrophic 3 | . 3 . Database Lockouts . | . . . Manual 4 | . 4 . Terminals 8 | . 8 . Fabricators . | . . . Repair Stations . | . . . Recycling Units 1 | . 1 . Scanalyzers . | . . . Garrison Access . | . . . Terminal Hacks 2 | . 2 . Prototype ID Bank 1 | . 1 . Registered Components 1 | . 1 . Fabricator Hacks . | . . . Repair Station Hacks . | . . . Recycling Unit Hacks . | . . . Scanalyzer . | . . . Garrison Access Hacks . | . . . Unauthorized Hacks 1 | . 1 . Terminals . | . . . Fabricators . | . . . Repair Stations . | . . . Recycling Units 1 | . 1 . Reject 1 | . 1 . Scanalyzers . | . . . Garrison Access . | . . . Data Cores Recovered . | . . . Used . | . . . Hacking Detections 3 | . 3 . Full Trace Events 1 | . 1 . Feedback Events . | . . . Feedback Blocked . | . . . Robot Schematics Acquired . | . . . Robots Built . | . . . Authchips . | . . . Time . | . . . Total Robot Build Rating . | . . . Part Schematics Acquired . | . . . Parts Built . | . . . Authchips . | . . . Time . | . . . Total Part Build Rating . | . . . Parts Repaired . | . . . Time . | . . . Parts Recycled . | . . . Recycled Matter . | . . . Retrieved Matter . | . . . Retrieved Components . | . . . Parts Scanalyzed . | . . . Part Schematics Acquired . | . . . Parts Damaged . | . . . Bothacking | -11 -10 -10 ------------ Run | Jun Mat Min Used RIF Installer . | . . . Robots Hacked . | . . . Non-combat . | . . . Combat . | . . . Robot Hacks Applied . | . . . Relay Couplers Released . | . . . Fabnet Peak Effective % . | . . . Robots Rewired . | . . . Allies Hacked . | . . . Hacks Repelled . | . . . Allies | -11 -10 -10 -------- Run | Jun Mat Min Total Allies . | . . . Largest Group . | . . . Highest-Rated Group . | . . . Highest-Rated Ally . | . . . Total Orders . | . . . Ally Attacks . | . . . Total Damage . | . . . Kills . | . . . Allies Corrupted . | . . . Allies Melted . | . . . Intel | -11 -10 -10 ------- Run | Jun Mat Min Robot Analysis Total . | . . . Derelict Logs Recovered . | . . . Drone Launches . | . . . Drone Recoveries . | . . . Exploration | -11 -10 -10 ------------- Run | Jun Mat Min Turns Passed 619 | 38 534 47 Spaces Moved 310 | 31 273 6 Core . | . . . Treads . | . . . Legs 204 | 31 173 . Wheels 106 | . 100 6 Hover . | . . . Flight . | . . . Fastest Speed 120 | 120 120 130 Average Speed 123 | 120 123 130 Slowest Speed 130 | 120 130 130 Overloaded Moves . | . . . Propulsion Burnouts . | . . . Robots Hopped . | . . . Cave-ins Triggered . | . . . Exploration Rate (%) 17 | 3 46 4 Regions Visited 2 Branch Regions 1 Pre-discovered Areas . | . . . Known Exits Taken . | . . . Unknown Exits Taken 2 | 1 1 . Scrap Searched . | . . . Spaces Dug . | . . . Terrain Destroyed . | . . . Melee . | . . . Projectile . | . . . AOE . | . . . Terrain Rammed . | . . . Walls Destroyed . | . . . Machines Disabled . | . . . Actions | -11 -10 -10 --------- Run | Jun Mat Min Total 475 | 31 413 31 Wait 84 | . 73 11 Move 308 | 30 272 6 Hop . | . . . Pick Up 17 | . 17 . Fast Attach 1 | . 1 . Attach 6 | . 1 5 Detach . | . . . Swap 9 | 1 8 . Drop 8 | . 8 . Fire 42 | . 33 9 Melee . | . . . Ram . | . . . Kick . | . . . Crush . | . . . Escape Stasis . | . . . Rewire . | . . . Trap . | . . . Miscellaneous . | . . . Route ------- -11/Junkyard -10/Materials -10/Mines History --------- Turn | Location | Event 3 | -11/Junkyard | Discovered new exit (range 3) 39 | -11/Junkyard | Entered Materials 318 | -10/Materials | Build established: Mutant 410 | -10/Materials | Discovered new exit (range 7) 573 | -10/Materials | Entered Mines 574 | -10/Mines | Assembled infested the area 614 | -10/Mines | Core integrity fell below 50% 620 | -10/Mines | Core integrity fell below 20% 620 | -10/Mines | Destroyed by as-69170 with Assembled Rifle Last Messages --------------- 00484_ Acquired Propulsion Shielding. 00490_ Connecting with Terminal... 00515_ Acquired Mining Laser. 00522_ Acquired Med. Matter Pod. 00564_ K-01 Serf cleans the Electrolysis Chamber. LOCATION=UNKNOWN GOAL=ESCAPE 00574_ ALERT: Infestation in the mines, dispatching Demolisher response squad. 00581_ T-07 Excavator destroyed. 00595_ as-44456 destroyed. 00595_ as-53013 destroyed. 00596_ Ion Engine destroyed. 00597_ Assault Rifle destroyed. 00601_ Com. Wheel destroyed. 00606_ Lgt. Cannon destroyed. 00608_ as-10654 destroyed. 00608_ Assault Rifle destroyed. 00614_ Lgt. Treads destroyed. 00616_ Heat Sink destroyed. Map ----- +----------------------------------------------------+ | ????????????????????????????????????????????? | | ????????????????????????????????????????????? | | ????????????????????????????????????????????? | | ????????????????????????????????????????????? | | ????????????????????????????????????????????? | | ????????????????????????????????????????????? | | ????????????????????????????????????????????? | | ????????????????????????????????????????????? | | ????????????????????????????????????????????? | | ????????????????????????????????????????????? | | ?????????????????????????#####??????????????? | | ????????????????????????# #??????????????? | | ???????????????????????? ???????????????? | | ???????????????????????? ????????????????? | | ???????????????????????? ????????????????? | | ???????????????????????? ?????????????????? | | ???????????????????????# ??????????????????? | | ???????????????????#### #??????????????????? | | ??????????????????## =#??????????????????? | | ???????????##?????# #??????????????????? | | ????????????" ### #???????????????????? | | ???????????????? =#???????????????????? | | ???????????????????# |%##??????????????????? | | ???????????????????##% a #??????????????????? | | ???????????????????##aaa #??????????????????? | | ???????????????????#@a %##??????????????????? | | ???????????????????#aa #???????????????????? | | ???????????????????##% ##???????????????????? | | ????????????????????####????????????????????? | | ????????????????????????????????????????????? | | ????????????????????????????????????????????? | | ????????????????????????????????????????????? | | ????????????????????????????????????????????? | | ????????????????????????????????????????????? | | ????????????????????????????????????????????? | | ????????????????????????????????????????????? | | ????????????????????????????????????????????? | | ????????????????????????????????????????????? | | ????????????????????????????????????????????? | | ????????????????????????????????????????????? | | ????????????????????????????????????????????? | | ????????????????????????????????????????????? | | ????????????????????????????????????????????? | | ????????????????????????????????????????????? | | ????????????????????????????????????????????? | | ????????????????????????????????????????????? | | ????????????????????????????????????????????? | | ????????????????????????????????????????????? | | ????????????????????????????????????????????? | | ????????????????????????????????????????????? | +----------------------------------------------------+ Best States ------------- Heat Dissipation 35 Energy Generation 10 Energy Capacity 250 Matter Stores 300 Matter Capacity 300 Sight Range 16 Terrain Scan Density 10 Evasion (%) 55 Recoil Reduction 2 Item Schematics ----------------- None Robot Schematics ------------------ None Fabricated ------------ Nothing Alien Tech Used ----------------- None Achievements -------------- None Challenges ------------ None Game ------ Seed PointyCorruptionNanosword Manual? 0 Play Time 00:13:37 Cumulative 111.1 hours Start 2023.03.29 @ 17:05:23 End 2023.03.29 @ 17:18:45 Sessions 1 Manual Loads 0 Difficulty Rogue Special Mode None Game No. 46 Rogue 46 Adventurer 0 Explorer 0 Win Type - Total 0 Types 0/0/0/0/0/0/0/0/0 Lore% 43 Gallery% 52 Achievement% 40 Wizard Run 0 Options --------- ASCII 0 Keyboard 0 Movement Mouse Keybinds 1 Fullscreen 2 Font 18/X11 Map View 76x50 Tactical HUD 1 Map Filters NONE Filters NONE Steam 1 RUN: 89e76b17-17a5-44a7-94fe-5f58597f3bb4